bitfinex-derivatives/quotes_BTCF0:USTF0_20240824
["timestamp","ask_amount","ask_price","bid_price","bid_amount"]
[1724533505678,0.51510934,64049.0,64048.0,0.2675]
[1724533505878,0.43774,64049.0,64048.0,0.2675]
[1724533508888,0.43774,64049.0,64048.0,0.1675]
[1724533509089,0.43774,64049.0,64048.0,0.2675]
[1724533510191,0.43674,64049.0,64048.0,0.2675]
[1724533510385,0.43674,64049.0,64048.0,0.1182]
[1724533510386,0.53774,64049.0,64048.0,0.1182]
[1724533510690,0.53774,64049.0,64044.0,0.00018061]
[1724533510691,0.56757409,64049.0,64044.0,0.00018061]
[1724533510882,0.0749,64045.0,64044.0,0.00018061]
[1724533511388,0.07494,64045.0,64044.0,0.00018061]
[1724533511783,0.07494,64045.0,64044.0,0.10018061]
[1724533512391,0.13672497,64045.0,64044.0,0.10018061]
[1724533513500,0.13772497,64045.0,64044.0,0.10018061]
[1724533514189,0.13872497,64045.0,64044.0,0.10018061]
[1724533514800,0.07694,64045.0,64044.0,0.10018061]
[1724533515999,0.07694,64045.0,64044.0,0.17821661]
[1724533516593,0.12325055,64045.0,64044.0,0.17821661]
[1724533516794,0.07694,64045.0,64044.0,0.17821661]
[1724533518800,0.00204,64045.0,64044.0,0.17821661]
[1724533520295,0.00204,64045.0,64044.0,0.07821661]
[1724533520497,0.00204,64045.0,64044.0,0.17821661]
[1724533524302,0.06382497,64045.0,64044.0,0.17821661]
[1724533524896,0.00204,64045.0,64044.0,0.17821661]
[1724533527509,0.07694,64045.0,64044.0,0.17821661]
[1724533527806,0.00204,64045.0,64044.0,0.17821661]
[1724533529116,0.00204,64045.0,64039.0,0.0481]
[1724533529117,0.780584,64044.0,64035.0,0.04678909]
[1724533529319,0.780584,64044.0,64011.0,0.3608]
[1724533529320,0.078053,64030.0,64012.0,0.1]
[1724533529523,0.42259544,64013.0,64012.0,0.06945326]
[1724533529827,0.3608,64013.0,64012.0,0.1182]
[1724533530023,0.3608,64013.0,64005.0,0.10129449]
[1724533530024,0.4380843,64013.0,64005.0,0.0935]
[1724533530224,0.3608,64006.0,63998.0,0.06234642]
[1724533530523,0.04625637,64001.0,63998.0,0.1004065]
[1724533530722,0.00023433,64008.0,63998.0,0.1004065]
[1724533530723,0.04625637,64003.0,64000.0,0.1]
[1724533531023,0.04625637,64005.0,64002.0,0.1]
[1724533531231,0.04625945,64007.0,64004.0,0.1]
[1724533531523,0.04649378,64008.0,64006.0,0.1]
[1724533531726,0.04625945,64007.0,64006.0,0.1]
[1724533532130,0.00023433,64008.0,64006.0,0.21824]
[1724533532131,0.04649378,64008.0,64006.0,0.21824]
[1724533532320,0.00023433,64008.0,64006.0,0.21824]
[1724533532628,0.00023433,64008.0,64007.0,0.11824]
[1724533533227,0.00023433,64008.0,64001.0,0.123588]
[1724533533529,0.00223433,64008.0,64007.0,0.11824]
[1724533534227,0.00123433,64008.0,64007.0,0.11824]
[1724533534423,0.00223433,64008.0,64007.0,0.11824]
[1724533535029,0.00223433,64008.0,63999.0,0.0471]
[1724533535219,0.00223433,64008.0,64007.0,0.11824]
[1724533536927,0.00123433,64008.0,64007.0,0.11824]
[1724533537132,0.00223433,64008.0,64007.0,0.11824]
[1724533540127,0.00223433,64008.0,64007.0,0.16524]
[1724533548137,0.00223433,64008.0,64007.0,0.16528]
[1724533548729,0.00223433,64008.0,64007.0,0.047]
[1724533549038,0.00223433,64008.0,64007.0,0.16528]
[1724533551439,0.00223433,64008.0,64007.0,0.047]
[1724533551741,0.00223433,64008.0,64007.0,0.11992]
[1724533552348,0.00123433,64008.0,64007.0,0.11992]
[1724533552645,0.00223433,64008.0,64007.0,0.11992]
[1724533554342,0.00223433,64008.0,64006.0,0.11992]
[1724533554642,0.10223433,64008.0,64006.0,0.11992]
[1724533554845,0.078081,64007.0,64006.0,0.11992]
[1724533555143,0.078081,64007.0,63989.0,0.5178]
[1724533555144,0.078086,64003.0,63999.0,0.26702]
[1724533555349,0.538886,64003.0,64001.0,0.1]
[1724533556143,0.3608,64003.0,64001.0,0.078088]
[1724533556345,0.3608,64003.0,64002.0,0.1]
[1724533556743,0.3618,64003.0,64002.0,0.1]
[1724533557744,0.3628,64003.0,64002.0,0.1]
[1724533558352,0.4400443,64003.0,64002.0,0.1]
[1724533558755,0.3618,64003.0,64002.0,0.1]
[1724533558948,0.3628,64003.0,64002.0,0.1]
[1724533559345,0.39397531,64003.0,64002.0,0.1]
[1724533560356,0.3628,64003.0,64001.0,0.078087]
[1724533560655,0.44017143,64003.0,64002.0,0.1]
[1724533561251,0.44017143,64003.0,64002.0,0.21996]
[1724533561452,0.3618,64003.0,64002.0,0.21996]
[1724533561755,0.3628,64003.0,64002.0,0.21996]
[1724533562349,0.3939727,64003.0,64002.0,0.21996]
[1724533562755,0.3929727,64003.0,64002.0,0.21996]
[1724533562952,0.3628,64003.0,64002.0,0.21996]
[1724533563451,0.3628,64003.0,64002.0,0.11996]
[1724533563651,0.3628,64003.0,64002.0,0.21996]
[1724533565253,0.3850405,64003.0,64002.0,0.21996]
[1724533565853,0.39407012,64003.0,64002.0,0.21996]
[1724533567562,0.39395518,64003.0,64002.0,0.21996]
[1724533569055,0.3628,64003.0,64002.0,0.21996]
[1724533569254,0.39396041,64003.0,64002.0,0.21996]
[1724533572262,0.47204641,64003.0,64002.0,0.11996]
[1724533572468,0.57204641,64003.0,64002.0,0.11996]
[1724533573467,0.57204641,64003.0,63999.0,0.1471]
[1724533573468,0.66473957,64003.0,63999.0,0.1471]
[1724533573670,0.03116041,64002.0,63999.0,0.1471]
[1724533574363,4e-05,64000.0,63999.0,0.10803893]
[1724533575265,0.0774231,64000.0,63999.0,0.10803893]
[1724533575863,0.0784231,64000.0,63999.0,0.10803893]
[1724533576960,0.0794231,64000.0,63999.0,0.10803893]
[1724533578160,0.00204,64000.0,63999.0,0.10803893]
[1724533578361,0.03255982,64000.0,63999.0,0.10803893]
[1724533578567,0.00204,64000.0,63999.0,0.10803893]
[1724533579371,0.03258713,64000.0,63999.0,0.10803893]
[1724533582064,0.00204,64000.0,63999.0,0.00803893]
[1724533582662,0.03217786,64000.0,63999.0,0.00803893]
[1724533582863,0.13217786,64000.0,63999.0,0.00803893]
[1724533583068,0.30296002,64000.0,63999.0,0.00803893]
[1724533583763,0.078093,63998.0,63996.0,0.0472]
[1724533583958,0.03013786,63997.0,63996.0,0.0472]
[1724533584267,0.13032248,63997.0,63990.0,0.09646456]
[1724533584468,0.3608,63991.0,63990.0,0.195]
[1724533585167,0.36084,63991.0,63990.0,0.195]
[1724533586167,0.36184,63991.0,63990.0,0.195]
[1724533586566,0.00104,63991.0,63990.0,1.0638]
[1724533586769,0.04635825,63993.0,63990.0,1.4246]
[1724533586966,0.00018462,63997.0,63992.0,0.1]
[1724533586967,0.04635825,63994.0,63992.0,0.1]
[1724533587171,0.04635825,63995.0,63993.0,0.1]
[1724533587372,0.04635825,63995.0,63994.0,0.5688]
[1724533587568,0.04636025,63995.0,63994.0,0.1]
[1724533587773,0.00018462,63997.0,63994.0,0.1]
[1724533587774,0.04636025,63996.0,63994.0,1.046897]
[1724533587963,0.04636025,63996.0,63994.0,0.178097]
[1724533588170,0.00018462,63997.0,63996.0,0.078094]
[1724533588375,0.00018462,63997.0,63996.0,0.438894]
[1724533588677,0.00018462,63997.0,63996.0,1.307654]
[1724533589672,0.00118462,63997.0,63996.0,1.3700712]
[1724533589979,0.0463645,64000.0,63999.0,0.078091]
[1724533590271,0.07751046,64008.0,63999.0,0.078091]
[1724533590272,0.06180859,64004.0,64003.0,0.078086]
[1724533590472,0.00023433,64008.0,64005.0,0.078083]
[1724533590473,0.06180859,64007.0,64005.0,0.078083]
[1724533590678,0.00023433,64008.0,63999.0,0.36164]
[1724533590679,0.06204292,64008.0,64007.0,0.078081]
[1724533590877,0.00023433,64008.0,64007.0,0.12486409]
[1724533591274,0.00023433,64008.0,64007.0,0.078081]
[1724533591972,0.00023433,64008.0,64007.0,0.080081]
[1724533593168,0.00023433,64008.0,64007.0,0.127081]
[1724533593381,0.00023433,64008.0,64007.0,0.130081]
[1724533596482,0.00023433,64008.0,64007.0,0.29559863]
[1724533597377,0.00023433,64008.0,64007.0,1.16427863]
[1724533597677,0.00023433,64008.0,64007.0,1.117561]
[1724533597881,0.06180859,64016.0,64007.0,1.40028]
[1724533598177,0.06180859,64022.0,64015.0,0.1]
[1724533598377,0.06180859,64023.0,64020.0,0.178065]
[1724533598682,0.06180859,64024.0,64022.0,0.4608]
[1724533598873,0.06180859,64024.0,64023.0,0.1]
[1724533599283,0.06180859,64027.0,64023.0,0.1]
[1724533599476,0.00023433,64029.0,64026.0,0.1]
[1724533599477,0.06180859,64028.0,64026.0,0.1]
[1724533599873,0.06180859,64028.0,64027.0,0.1188]
[1724533600080,0.06204292,64029.0,64027.0,0.1188]
[1724533600279,0.06204292,64029.0,64027.0,0.11884]
[1724533600482,0.00023433,64029.0,64027.0,0.11884]
[1724533600885,0.00023433,64029.0,64028.0,4e-05]
[1724533601082,0.06204292,64029.0,64028.0,4e-05]
[1724533601282,0.00023433,64029.0,64028.0,4e-05]
[1724533602078,0.00923433,64029.0,64028.0,0.00104]
[1724533602286,0.00923433,64029.0,64028.0,0.00204]
[1724533602287,0.02323433,64029.0,64028.0,0.00204]
[1724533603783,0.02323433,64029.0,64028.0,0.080095]
[1724533604080,0.02323433,64029.0,64028.0,0.198855]
[1724533604478,0.03096436,64029.0,64028.0,0.198855]
[1724533605681,0.02323433,64029.0,64028.0,0.198855]
[1724533606583,0.02323433,64029.0,64028.0,0.559655]
[1724533609977,0.38403433,64029.0,64028.0,0.080095]
[1724533610177,0.38403433,64029.0,64028.0,0.198855]
[1724533610580,0.38403433,64029.0,64028.0,0.080095]
[1724533610881,0.38403433,64029.0,64028.0,0.198855]
[1724533611587,0.38403433,64029.0,64028.0,0.080095]
[1724533611783,0.38403433,64029.0,64028.0,0.198135]
[1724533612386,0.38403433,64029.0,64028.0,0.080095]
[1724533612784,0.38403433,64029.0,64028.0,0.12008]
[1724533613089,0.43113433,64029.0,64028.0,0.12008]
[1724533613389,0.43113433,64029.0,64028.0,0.22008]
[1724533614390,0.99969433,64029.0,64018.0,0.078067]
[1724533614686,0.3608,64021.0,64020.0,0.078065]
[1724533614888,0.53304292,64029.0,64023.0,0.078061]
[1724533615082,0.53201859,64029.0,64028.0,0.1]
[1724533615283,0.47043433,64029.0,64028.0,0.1]
[1724533615482,0.46143433,64029.0,64028.0,0.1]
[1724533615679,0.93599433,64029.0,64028.0,0.1]
[1724533615884,1.05799137,64029.0,64025.0,0.1]
[1724533616084,0.11011802,64028.0,64025.0,0.1]
[1724533616286,0.06161802,64026.0,64025.0,0.1]
[1724533617292,0.0485,64028.0,64025.0,0.1]
[1724533617683,0.013,64026.0,64025.0,0.101]
[1724533617883,0.025,64026.0,64025.0,0.101]
[1724533618295,0.08670511,64026.0,64025.0,0.101]
[1724533618593,0.07470511,64026.0,64025.0,0.101]
[1724533619189,0.013,64026.0,64025.0,0.101]
[1724533620382,0.025,64026.0,64025.0,0.101]
[1724533623295,0.10227613,64026.0,64025.0,0.101]
[1724533624292,0.025,64026.0,64025.0,0.101]
[1724533625499,0.05411813,64026.0,64025.0,0.101]
[1724533625796,0.13318659,64026.0,64025.0,0.1]
[1724533626096,0.26542623,64026.0,64025.0,0.1]
[1724533626299,0.27113077,64026.0,64025.0,0.1]
[1724533626487,0.15723964,64026.0,64025.0,0.1]
[1724533627192,0.25723964,64026.0,64021.0,0.0465]
[1724533627393,0.3608,64022.0,64021.0,0.26454]
[1724533627593,0.49303964,64022.0,64021.0,0.26454]
[1724533627794,0.49303964,64022.0,64021.0,0.16454]
[1724533628000,0.4892507,64022.0,64021.0,0.11804]
[1724533628190,0.7074561,64022.0,64019.0,0.11804]
[1724533628389,0.10818786,64020.0,64019.0,0.11804]
[1724533628596,0.38984513,64020.0,64019.0,0.11804]
[1724533628892,0.38984513,64020.0,64017.0,0.07830333]
[1724533629093,0.07727617,64018.0,64017.0,0.19634333]
[1724533629304,0.17727617,64018.0,64017.0,0.19634333]
[1724533630512,0.17727617,64018.0,64017.0,0.11827433]
[1724533630513,0.18127617,64018.0,64017.0,0.11827433]
[1724533630811,0.18127617,64018.0,64017.0,0.00023433]
[1724533631406,0.18627617,64018.0,64017.0,0.00023433]
[1724533632203,0.109,64018.0,64017.0,0.00023433]
[1724533632618,0.18627617,64018.0,64017.0,0.00023433]
[1724533632913,0.08627617,64018.0,64017.0,0.00023433]
[1724533636511,0.009,64018.0,64017.0,0.00023433]
[1724533636716,0.98314833,64018.0,64006.0,0.04671763]
[1724533636912,0.98314833,64018.0,64006.0,0.11808]
[1724533636913,0.8216,64009.0,64006.0,0.11808]
[1724533637115,0.89878325,64009.0,64006.0,0.11808]
[1724533637420,0.07718325,64007.0,64006.0,0.11808]
[1724533638113,0.97866125,64009.0,64006.0,0.12508]
[1724533638316,0.07718325,64008.0,64006.0,0.12508]
[1724533638511,0.07718325,64008.0,64006.0,0.11808]
[1724533638718,0.001,64007.0,64006.0,0.12508]
[1724533639915,0.001,64007.0,64000.0,0.045]
[1724533639916,0.49536523,64007.0,64000.0,0.045]
[1724533640109,0.3608,64001.0,64000.0,0.123089]
[1724533640816,0.42246759,64001.0,64000.0,0.123089]
[1724533641217,0.3608,64001.0,64000.0,0.127089]
[1724533642027,0.3618,64001.0,64000.0,0.140089]
[1724533642509,0.3618,64001.0,64000.0,0.06]
[1724533643513,0.3628,64001.0,64000.0,0.06]
[1724533649822,0.440888,64001.0,64000.0,0.06]
[1724533650628,0.440888,64001.0,64000.0,0.015]
[1724533653133,0.801688,64001.0,64000.0,0.015]
[1724533655236,0.86335559,64001.0,64000.0,0.015]
[1724533657229,0.801688,64001.0,64000.0,0.015]
[1724533657424,0.814178,64001.0,64000.0,0.015]
[1724533659626,0.814178,64001.0,64000.0,0.00448743]
[1724533660429,0.914178,64001.0,64000.0,0.00448743]
[1724533660834,0.97584825,64001.0,64000.0,0.00448743]
[1724533661035,0.97584867,64001.0,64000.0,0.00448743]
[1724533661328,0.914178,64001.0,64000.0,0.00448743]
[1724533663536,0.99126249,64001.0,64000.0,0.00448743]
[1724533663730,0.914178,64001.0,64000.0,0.00448743]
[1724533664231,0.99126249,64001.0,64000.0,0.00448743]
[1724533665232,0.94079934,64001.0,64000.0,0.00448743]
[1724533666433,0.86271134,64001.0,64000.0,0.00448743]
[1724533667431,0.95544274,64001.0,64000.0,0.00448743]
[1724533667640,0.85544274,64001.0,64000.0,0.00448743]
[1724533667828,0.81337163,64001.0,64000.0,0.08257643]
[1724533668023,0.73609,64001.0,64000.0,0.08257643]
[1724533668235,0.73609,64001.0,64000.0,0.10473373]
[1724533668833,0.73609,64001.0,64000.0,0.08257643]
[1724533670226,0.83609,64001.0,64000.0,0.00448743]
[1724533670529,0.83609,64001.0,64000.0,0.16939735]
[1724533670726,0.91337163,64001.0,64000.0,0.12256743]
[1724533671640,0.81337163,64001.0,64000.0,0.20065643]
[1724533674335,0.73609,64001.0,64000.0,0.20065643]
[1724533674931,0.76274676,64001.0,64000.0,0.20065643]
[1724533675931,0.76270974,64001.0,64000.0,0.20065643]
[1724533676744,0.76268692,64001.0,64000.0,0.20065643]
[1724533677231,0.81331052,64001.0,64000.0,0.20065643]
[1724533679336,0.37529,64001.0,64000.0,0.20065643]
[1724533680340,0.37529,64001.0,64000.0,0.12940635]
[1724533680536,0.37529,64001.0,64000.0,0.08257643]
[1724533680936,0.37529,64001.0,64000.0,0.00448743]
[1724533681135,0.37529,64001.0,64000.0,0.0513168]
[1724533681330,0.37529,64001.0,64000.0,0.00448743]
[1724533681537,0.37529,64001.0,64000.0,0.0513168]
[1724533681743,0.37529,64001.0,64000.0,0.00448743]
[1724533683739,0.45251052,64001.0,64000.0,0.00448743]
[1724533684244,0.37529,64001.0,64000.0,0.00448743]
[1724533684547,0.40182592,64001.0,64000.0,0.00448743]
[1724533685244,0.424093,64001.0,64000.0,0.00448743]
[1724533689540,0.51690908,64001.0,64000.0,0.00448743]
[1724533690348,0.51684977,64001.0,64000.0,0.00448743]
[1724533690549,0.59493777,64001.0,64000.0,0.00448743]
[1724533690844,0.50226568,64001.0,64000.0,0.00134258]
[1724533691051,0.59867068,64001.0,64000.0,0.00134258]
[1724533692342,0.50226568,64001.0,64000.0,0.00134258]
[1724533695046,0.59862015,64001.0,64000.0,0.00134258]
[1724533696152,0.14146568,64001.0,64000.0,0.00134258]
[1724533696356,0.86306568,64001.0,64000.0,0.00134258]
[1724533698641,0.14146568,64001.0,64000.0,0.00134258]
[1724533698847,0.86306568,64001.0,64000.0,0.00134258]
[1724533699052,0.95916113,64001.0,64000.0,0.00134258]
[1724533699444,0.078093,63997.0,63993.0,0.078097]
[1724533699747,0.4608,63995.0,63993.0,0.078097]
[1724533699944,0.4874206,63995.0,63993.0,0.078097]
[1724533700148,0.4874606,63995.0,63993.0,0.078097]
[1724533700544,0.4874606,63995.0,63994.0,0.0482]
[1724533701253,0.4874606,63995.0,63994.0,0.0462]
[1724533701453,0.47534,63995.0,63994.0,0.0482]
[1724533702157,0.55250242,63995.0,63994.0,0.0482]
[1724533703552,0.50178965,63995.0,63994.0,0.0482]
[1724533705154,0.14098965,63995.0,63994.0,0.0482]
[1724533705357,0.50178965,63995.0,63994.0,0.0482]
[1724533707266,0.50078965,63995.0,63994.0,0.0462]
[1724533707456,0.50177629,63995.0,63994.0,0.0462]
[1724533707856,0.57987129,63995.0,63994.0,0.0462]
[1724533708072,0.67248208,63995.0,63994.0,0.0462]
[1724533708772,0.078099,63992.0,63991.0,0.0483]
[1724533708978,0.56533529,63992.0,63991.0,0.0483]
[1724533709471,0.56537529,63992.0,63991.0,0.0483]
[1724533710073,0.56737529,63992.0,63991.0,0.0483]
[1724533711068,0.56637529,63992.0,63991.0,0.0483]
[1724533711277,0.56737529,63992.0,63991.0,0.0483]
[1724533712178,0.56699749,63992.0,63991.0,0.0483]
[1724533712474,0.56700073,63992.0,63991.0,0.0483]
[1724533712677,0.58980795,63992.0,63991.0,0.0483]
[1724533712884,0.68237465,63992.0,63991.0,0.0483]
[1724533713579,0.58980795,63992.0,63991.0,0.0483]
[1724533714180,0.68237465,63992.0,63991.0,0.0483]
[1724533714676,0.58991894,63992.0,63991.0,0.0483]
[1724533716978,0.58994764,63992.0,63991.0,0.0483]
[1724533719476,0.64090756,63992.0,63991.0,0.0483]
[1724533719783,0.56374622,63992.0,63991.0,0.0483]
[1724533720280,0.58999094,63992.0,63991.0,0.0483]
[1724533720873,0.58998326,63992.0,63991.0,0.0483]
[1724533721072,0.50248326,63992.0,63991.0,0.0483]
[1724533721281,0.60248326,63992.0,63991.0,0.0483]
[1724533721668,0.60244019,63992.0,63991.0,0.0483]
[1724533722880,0.59500689,63992.0,63991.0,0.0483]
[1724533723080,0.69407548,63992.0,63990.0,0.03953893]
[1724533723382,0.02619397,63991.0,63990.0,0.03953893]
[1724533724682,0.12619397,63991.0,63990.0,0.03953893]
[1724533725978,0.12719397,63991.0,63990.0,0.03953893]
[1724533726183,0.12819397,63991.0,63990.0,0.03953893]
[1724533727774,0.02819397,63991.0,63990.0,0.03953893]
[1724533727974,0.12819397,63991.0,63990.0,0.03953893]
[1724533732482,0.12719397,63991.0,63990.0,0.03953893]
[1724533732690,0.12819397,63991.0,63990.0,0.03953893]
[1724533734280,0.48899397,63991.0,63990.0,0.03953893]
[1724533735492,0.58162926,63991.0,63990.0,0.03953893]
[1724533735792,0.58103516,63991.0,63990.0,0.03953893]
[1724533736099,0.48839987,63991.0,63990.0,0.03953893]
[1724533737784,0.58103516,63991.0,63990.0,0.03953893]
[1724533739487,0.48103516,63991.0,63990.0,0.11763993]
[1724533739995,0.38839987,63991.0,63990.0,0.11763993]
[1724533740493,0.38840456,63991.0,63990.0,0.11763993]
[1724533741497,0.48103985,63991.0,63990.0,0.11763993]
[1724533742096,0.38840456,63991.0,63990.0,0.11763993]
[1724533743188,0.38840456,63991.0,63990.0,0.03953893]
[1724533743395,0.38840456,63991.0,63987.0,0.125204]
[1724533743396,0.48114837,63991.0,63987.0,0.125204]
[1724533743588,0.1,63988.0,63987.0,0.125204]
[1724533743784,0.12560456,63988.0,63987.0,0.241324]
[1724533744188,0.12560456,63988.0,63987.0,0.125204]
[1724533745292,0.12660456,63988.0,63987.0,0.125204]
[1724533745602,0.12660456,63988.0,63987.0,0.241324]
[1724533746299,0.078105,63987.0,63985.0,0.01365536]
[1724533746497,0.47983422,63986.0,63976.0,0.00017707]
[1724533746805,0.4608,63977.0,63976.0,0.00017707]
[1724533747001,0.48633145,63977.0,63976.0,0.00017707]
[1724533747590,0.53794873,63977.0,63976.0,0.00017707]
[1724533747992,0.3608,63977.0,63976.0,0.00017707]
[1724533748195,0.4225237,63977.0,63976.0,0.29441607]
[1724533748393,0.00023433,63983.0,63977.0,0.078117]
[1724533748394,0.0617237,63979.0,63977.0,0.078117]
[1724533748594,0.0617237,63979.0,63978.0,0.0948]
[1724533748897,0.0617237,63980.0,63978.0,0.0948]
[1724533749096,0.0617237,63980.0,63979.0,0.047]
[1724533749992,0.0627237,63980.0,63979.0,0.047]
[1724533750394,0.0627237,63980.0,63979.0,0.225115]
[1724533751303,0.001,63980.0,63979.0,0.225115]
[1724533752197,0.002,63980.0,63979.0,0.225115]
[1724533752793,0.002,63980.0,63979.0,1.454835]
[1724533752999,0.04652022,63983.0,63982.0,0.078111]
[1724533753196,0.04652162,63983.0,63982.0,0.178111]
[1724533753391,0.04652162,63983.0,63982.0,1.046991]
[1724533755296,0.00123433,63983.0,63982.0,1.047991]
[1724533755798,0.00223433,63983.0,63982.0,1.408791]
[1724533756599,0.0125,63985.0,63982.0,1.408791]
[1724533756794,0.04628592,63989.0,63988.0,0.078104]
[1724533757000,0.04628592,63989.0,63988.0,0.438904]
[1724533757298,4e-05,63992.0,63991.0,0.0781]
[1724533757497,4e-05,63992.0,63991.0,0.6469]
[1724533758194,4e-05,63992.0,63991.0,0.0781]
[1724533758390,0.01254,63992.0,63990.0,0.1]
[1724533758599,0.0742637,63992.0,63991.0,0.11612]
[1724533758897,0.07424005,63992.0,63991.0,0.11612]
[1724533759101,0.01254,63992.0,63991.0,0.11612]
[1724533760401,0.01254,63992.0,63991.0,0.11912]
[1724533762301,0.01354,63992.0,63991.0,0.002]
[1724533762502,0.11354,63992.0,63991.0,0.002]
[1724533762701,0.01354,63992.0,63991.0,0.102]
[1724533764104,0.01354,63992.0,63991.0,0.180101]
[1724533765794,0.05979515,63992.0,63991.0,0.180101]
[1724533766302,0.01354,63992.0,63991.0,0.180101]
[1724533766512,0.0597971,63992.0,63991.0,0.180101]
[1724533766697,0.01354,63992.0,63991.0,0.180101]
[1724533766899,0.05979943,63992.0,63991.0,0.540901]
[1724533767203,0.01354,63992.0,63991.0,0.540901]
[1724533768001,0.01354,63992.0,63991.0,0.180101]
[1724533768402,0.01354,63992.0,63991.0,0.648901]
[1724533768603,0.01354,63992.0,63991.0,0.180101]
[1724533768809,0.01354,63992.0,63991.0,1.048901]
[1724533769404,0.00023433,63998.0,63997.0,0.078093]
[1724533769609,0.00023433,63998.0,63997.0,0.578093]
[1724533769811,0.00023433,63998.0,63997.0,1.046853]
[1724533770415,0.00023433,63998.0,63997.0,1.094753]
[1724533770613,0.00123433,63998.0,63997.0,0.225993]
[1724533771009,0.00773433,63998.0,63997.0,0.225993]
[1724533771312,0.01073433,63998.0,63997.0,0.694753]
[1724533772320,0.00973433,63998.0,63997.0,0.694753]
[1724533772616,0.00973433,63998.0,63997.0,0.746253]
[1724533772812,0.00873433,63998.0,63997.0,0.746253]
[1724533773007,0.00873433,63998.0,63997.0,0.747253]
[1724533774613,0.00873433,63998.0,63997.0,0.278493]
[1724533775917,0.00873433,63998.0,63997.0,0.30139278]
[1724533776517,0.00873433,63998.0,63997.0,0.77015278]
[1724533776709,0.00873433,63998.0,63997.0,1.17015278]
[1724533777515,0.00873433,63998.0,63997.0,1.17019278]
[1724533778423,0.04625943,64010.0,63997.0,1.15451698]
[1724533778722,0.04625943,64008.0,64007.0,0.1]
[1724533779019,0.04625943,64009.0,64008.0,0.07808]
[1724533779229,0.04625943,64009.0,64008.0,0.17808]
[1724533779411,0.42250005,64013.0,64008.0,0.1]
[1724533779412,0.04625943,64010.0,64008.0,0.1]
[1724533779615,0.04625943,64010.0,64009.0,0.228379]
[1724533779910,0.06170005,64014.0,64009.0,0.228379]
[1724533779911,0.04625943,64011.0,64010.0,0.078077]
[1724533780115,0.04625943,64011.0,64010.0,0.178077]
[1724533780313,0.04623963,64011.0,64010.0,0.178077]
[1724533780910,0.04623963,64011.0,64010.0,0.178117]
[1724533781316,0.06023963,64011.0,64010.0,0.178117]
[1724533781721,0.014,64011.0,64010.0,0.178117]
[1724533782115,0.027,64011.0,64010.0,0.178117]
[1724533786417,0.014,64011.0,64010.0,0.178117]
[1724533786626,0.021,64011.0,64010.0,0.178117]
[1724533787319,0.021,64011.0,64010.0,0.646797]
[1724533787726,0.016,64011.0,64010.0,0.646797]
[1724533788427,0.016,64011.0,64010.0,0.178117]
[1724533790523,0.016,64011.0,64010.0,0.295757]
[1724533792428,0.016,64011.0,64010.0,0.296917]
[1724533794424,0.016,64011.0,64010.0,0.178117]
[1724533794627,0.016,64011.0,64010.0,0.11884]
[1724533794628,0.116,64011.0,64010.0,0.11884]
[1724533795132,0.1653,64011.0,64010.0,0.11884]
[1724533795520,0.1653,64011.0,64010.0,4e-05]
[1724533796738,0.0653,64011.0,64010.0,0.10004]
[1724533797432,0.11153963,64011.0,64010.0,0.10004]
[1724533798434,0.0653,64011.0,64010.0,0.10004]
[1724533799331,0.0653,64011.0,64003.0,0.00023433]
[1724533799332,0.63398,64011.0,64003.0,0.00023433]
[1724533799537,0.04627641,64004.0,64003.0,0.00023433]
[1724533800028,0.4616,64006.0,64003.0,0.00023433]
[1724533800232,0.4608,64006.0,64003.0,0.00023433]
[1724533800938,0.002,64004.0,64003.0,0.00023433]
[1724533801426,0.3628,64006.0,64003.0,0.00023433]
[1724533801731,0.3628,64006.0,64005.0,0.1]
[1724533801936,0.3608,64006.0,64005.0,0.1]
[1724533803139,0.3628,64006.0,64005.0,0.1]
[1724533804133,0.3648,64006.0,64005.0,0.1]
[1724533804937,0.3668,64006.0,64005.0,0.1]
[1724533805238,0.4668,64006.0,64003.0,0.00023433]
[1724533805438,0.04631727,64004.0,64003.0,0.00023433]
[1724533805634,0.06170188,64005.0,64003.0,0.00023433]
[1724533805836,0.4676,64006.0,64003.0,0.00023433]
[1724533805837,0.16170188,64004.0,64003.0,0.00023433]
[1724533806846,0.16176491,64004.0,64003.0,0.00023433]
[1724533808239,0.16576491,64004.0,64003.0,0.00023433]
[1724533808445,0.08348457,64004.0,64003.0,0.00023433]
[1724533808738,0.26156957,64004.0,64003.0,0.00023433]
[1724533808947,0.14384991,64004.0,64003.0,0.00023433]
[1724533809147,0.083085,64004.0,64003.0,0.00023433]
[1724533809338,0.085085,64004.0,64003.0,0.00023433]
[1724533809846,0.007,64004.0,64003.0,0.00023433]
[1724533810744,0.009,64004.0,64003.0,0.00023433]
[1724533810938,0.012,64004.0,64003.0,0.00023433]
[1724533816443,0.07376491,64004.0,64003.0,0.00023433]
[1724533816645,0.07376491,64004.0,64003.0,0.12972033]
[1724533816646,0.012,64004.0,64003.0,0.12972033]
[1724533819552,0.07376491,64004.0,64003.0,0.12972033]
[1724533819851,0.012,64004.0,64003.0,0.12972033]
[1724533820548,0.06174495,64009.0,64003.0,0.52035433]
[1724533820748,0.36172,64012.0,64006.0,0.078082]
[1724533820749,0.04631862,64007.0,64006.0,0.078082]
[1724533821049,0.1,64010.0,64006.0,0.078082]
[1724533821443,0.16174495,64010.0,64007.0,0.11884]
[1724533821647,0.06674495,64009.0,64007.0,0.11884]
[1724533821947,0.06670495,64009.0,64008.0,0.11884]
[1724533822144,0.16670495,64009.0,64008.0,0.11768]
[1724533822648,0.105,64009.0,64008.0,0.11768]
[1724533823445,0.1,64009.0,64008.0,0.11768]
[1724533824053,0.1,64009.0,64008.0,0.001]
[1724533824054,0.107,64009.0,64008.0,0.001]
[1724533824446,0.112,64009.0,64008.0,0.001]
[1724533824757,0.012,64009.0,64008.0,0.11868]
[1724533830350,0.112,64009.0,64008.0,0.11868]
[1724533839058,0.4728,64009.0,64008.0,0.11868]
[1724533840457,0.112,64009.0,64008.0,0.11868]
[1724533840661,0.4728,64009.0,64008.0,0.11868]
[1724533840851,0.112,64009.0,64008.0,0.11868]
[1724533841059,0.4728,64009.0,64008.0,0.11868]